bitfinex-derivatives/quotes_BNBF0:USTF0_20250309
["timestamp","ask_amount","ask_price","bid_price","bid_amount"]
[1741523351506,0.345,577.53,576.66,0.34682481]
[1741523351703,0.345,577.53,576.67,0.29083982]
[1741523352510,0.345,577.53,576.68,0.29082521]
[1741523352810,0.345,577.53,576.67,0.29082521]
[1741523353014,0.345,577.53,576.68,0.29082521]
[1741523353311,0.345,577.53,576.69,0.29082521]
[1741523353511,0.345,577.53,576.67,0.29082521]
[1741523353812,0.345,577.53,576.68,0.637638]
[1741523354007,0.345,577.53,576.69,0.63763198]
[1741523354205,0.345,577.53,576.7,0.63762597]
[1741523354405,1.27865714,577.55,576.71,0.63761995]
[1741523354606,1.27865714,577.55,576.72,0.63761394]
[1741523354806,1.27865714,577.55,576.73,0.63760793]
[1741523355007,1.27865714,577.55,576.74,0.63760192]
[1741523355206,1.27865714,577.55,576.75,0.29081627]
[1741523356208,1.27865714,577.55,576.76,0.528]
[1741523356412,1.27865714,577.55,576.77,0.29081627]
[1741523356807,1.27865714,577.55,576.78,0.29082816]
[1741523357112,1.27865714,577.55,576.79,0.29082816]
[1741523357511,1.27865714,577.55,576.8,0.29082816]
[1741523357709,0.507,577.54,576.77,0.29082816]
[1741523360417,0.507,577.54,576.76,0.528]
[1741523360613,0.507,577.54,576.77,0.29082382]
[1741523362216,0.507,577.54,576.78,0.2908089]
[1741523362617,0.507,577.54,576.79,0.2908089]
[1741523362913,0.507,577.54,576.77,0.2908089]
[1741523364020,0.507,577.54,576.76,0.528]
[1741523364217,0.507,577.54,576.77,0.29080834]
[1741523367520,0.507,577.54,576.78,0.2908058]
[1741523367720,0.507,577.54,576.77,0.2908058]
[1741523368019,0.507,577.54,576.78,0.2908058]
[1741523368416,0.507,577.54,576.79,0.2908058]
[1741523368612,0.507,577.54,576.77,0.2908058]
[1741523368820,0.507,577.54,576.78,0.2908058]
[1741523369120,0.507,577.54,576.79,0.2908058]
[1741523369514,0.507,577.54,576.8,0.2908058]
[1741523369713,0.507,577.54,576.76,0.30149448]
[1741523369714,0.507,577.54,576.81,0.2908058]
[1741523369914,0.507,577.54,576.82,0.2908058]
[1741523370116,0.507,577.54,576.83,0.2908058]
[1741523370317,0.507,577.54,576.76,0.30149448]
[1741523370519,0.507,577.54,576.77,0.63753676]
[1741523370820,0.507,577.54,576.78,0.29077809]
[1741523372418,0.507,577.54,576.78,0.73777809]
[1741523372626,0.507,577.54,576.79,0.29077809]
[1741523376427,0.507,577.54,576.78,0.74848403]
[1741523377322,0.507,577.54,576.78,0.447]
[1741523377629,0.507,577.54,576.78,0.74848403]
[1741523380332,0.507,577.54,576.79,0.29077079]
[1741523382737,0.507,577.54,576.8,0.29077227]
[1741523382937,0.507,577.54,576.81,0.29077227]
[1741523383133,0.507,577.54,576.82,0.29077227]
[1741523383336,0.507,577.54,576.79,0.29077227]
[1741523383532,0.507,577.54,576.8,0.592242]
[1741523383737,0.507,577.54,576.81,0.29077103]
[1741523385639,0.30147097,577.65,576.81,0.29077103]
[1741523386240,1.27865714,578.32,576.81,0.29077103]
[1741523386441,0.34584125,578.3,576.79,0.29077103]
[1741523386644,0.34584125,578.3,576.82,0.29077103]
[1741523386841,0.3182763,578.29,576.83,0.29077103]
[1741523387244,0.3182763,578.28,576.84,0.29077103]
[1741523387443,0.3182763,578.27,576.84,0.29077103]
[1741523387648,0.34587116,578.25,576.85,0.29077103]
[1741523387844,0.34587116,578.25,576.79,0.29077103]
[1741523388043,0.34587116,578.25,576.78,0.447]
[1741523388044,0.3182763,578.24,576.8,0.29077103]
[1741523388246,0.3458891,578.22,576.79,0.29077103]
[1741523388442,0.3458891,578.22,576.81,0.29077103]
[1741523388642,0.3182763,578.21,576.82,0.29077103]
[1741523388843,0.34590705,578.19,576.79,0.29077103]
[1741523389047,1.27865714,578.06,576.8,0.29077103]
[1741523389247,0.66426713,578.05,576.81,0.29077103]
[1741523389443,0.66427311,578.04,576.79,0.29077103]
[1741523389743,0.6642791,578.03,576.8,0.29077103]
[1741523389950,0.66432536,578.02,576.81,0.29081998]
[1741523390151,0.66433135,578.01,576.79,0.29081998]
[1741523390352,0.66433734,578.0,576.8,0.29081998]
[1741523390550,0.66434332,577.99,576.81,0.29081998]
[1741523390749,0.3183105,577.98,576.82,0.29081394]
[1741523390950,0.34603872,577.97,576.83,0.29081394]
[1741523391145,0.3183105,577.96,576.79,0.29081394]
[1741523391346,0.34605069,577.95,576.8,0.29081394]
[1741523391550,0.3183105,577.94,576.79,0.29081394]
[1741523391754,0.34606267,577.93,576.8,0.29081394]
[1741523391945,0.3183105,577.92,576.81,0.29081394]
[1741523392246,0.34607464,577.91,576.82,0.29081394]
[1741523392451,0.31831338,577.9,576.83,0.29081681]
[1741523392645,0.34608662,577.89,576.79,0.29081681]
[1741523392847,0.31831338,577.88,576.8,0.29081681]
[1741523393047,0.31831338,577.88,576.79,0.29081681]
[1741523393245,0.31831338,577.88,576.8,0.29081681]
[1741523393447,0.31831338,577.88,576.81,0.29081681]
[1741523393651,0.30146836,577.87,576.79,0.29081681]
[1741523393850,0.31831338,577.86,576.8,0.29081681]
[1741523394049,0.31831338,577.86,576.79,0.29081681]
[1741523395550,0.61978435,577.85,576.79,0.29081681]
[1741523395748,0.31831338,577.84,576.79,0.29081681]
[1741523398656,0.30147881,577.83,576.79,0.29081681]
[1741523399053,0.31831338,577.82,576.79,0.29081681]
[1741523401553,0.30150362,577.81,576.78,0.447]
[1741523404446,0.34608662,577.89,576.78,0.447]
[1741523405647,0.30143311,577.88,576.78,0.447]
[1741523408760,0.3460986,577.87,576.78,0.447]
[1741523409054,0.31832066,577.86,576.79,0.29082389]
[1741523411257,0.436,577.85,576.79,0.29082389]
[1741523411457,0.31832066,577.84,576.79,0.29082389]
[1741523412157,0.436,577.85,576.78,0.447]
[1741523412351,0.31830856,577.84,576.79,0.29081204]
[1741523413149,0.436,577.85,576.78,0.447]
[1741523413352,0.3183089,577.84,576.79,0.29081239]
[1741523413551,0.6197864,577.84,576.79,0.29081239]
[1741523413752,0.3183089,577.83,576.79,0.29081239]
[1741523414454,0.3014775,577.84,576.77,0.34675867]
[1741523417756,0.3014775,577.84,576.77,0.74175867]
[1741523419359,0.436,577.85,576.77,0.74175867]
[1741523419859,0.30148272,577.83,576.77,0.74175867]
[1741523421560,0.31832527,577.82,576.78,0.29082848]
[1741523422665,0.61981583,577.81,576.78,0.29082848]
[1741523422965,0.30149056,577.81,576.77,0.74175867]
[1741523425366,1.27865714,577.84,576.77,0.74175867]
[1741523425568,0.30148664,577.8,576.77,0.74175867]
[1741523426768,0.31832214,577.79,576.78,0.29082642]
[1741523428566,0.31832214,577.78,576.78,0.29082642]
[1741523428769,0.31832214,577.77,576.78,0.29082642]
[1741523430371,0.30148664,577.78,576.78,0.29082642]
[1741523432972,0.30148664,577.78,576.79,0.29078758]
[1741523433173,0.30148664,577.78,576.78,0.29078758]
[1741523433372,0.30148664,577.78,576.79,0.29078758]
[1741523433570,0.30148664,577.78,576.8,0.29078758]
[1741523433771,0.30148664,577.78,576.81,0.29078758]
[1741523433967,0.30148664,577.78,576.82,0.29078758]
[1741523434176,0.30148664,577.78,576.78,0.29078758]
[1741523434374,0.436,577.85,576.83,0.29078758]
[1741523434573,0.30144094,577.77,576.84,0.29078758]
[1741523434774,0.30144094,577.77,576.85,0.29080027]
[1741523434974,0.436,577.85,576.78,0.29080027]
[1741523435176,0.436,577.85,576.79,0.29080027]
[1741523435371,0.436,577.85,576.8,0.29080027]
[1741523435575,0.30145661,577.84,576.78,0.29080027]
[1741523435774,0.30145661,577.84,576.79,0.29080027]
[1741523435975,0.30145661,577.84,576.8,0.29080027]
[1741523436173,0.30145661,577.84,576.78,0.29080027]
[1741523436372,0.30145661,577.84,576.77,0.74175867]
[1741523436572,0.30145661,577.84,576.78,0.29078802]
[1741523437273,0.436,577.85,576.78,0.29078802]
[1741523437678,0.30145922,577.83,576.78,0.29078802]
[1741523439479,0.30145922,577.83,576.77,0.74175867]
[1741523439674,0.30145922,577.83,576.78,0.29078854]
[1741523440380,0.3460986,577.87,576.78,0.29078854]
[1741523440777,0.30145661,577.82,576.78,0.29078854]
[1741523441581,0.74845661,577.82,576.78,0.29078854]
[1741523443382,0.447,577.82,576.78,0.29078854]
[1741523443576,0.30146575,577.81,576.78,0.29078854]
[1741523446379,0.447,577.82,576.78,0.29078854]
[1741523446786,0.30146575,577.8,576.78,0.29078854]
[1741523447187,0.30146575,577.8,576.79,0.2907869]
[1741523447389,0.30146575,577.8,576.78,0.2907869]
[1741523447588,0.30146575,577.8,576.79,0.2907869]
[1741523447785,0.30146575,577.8,576.78,0.2907869]
[1741523447984,0.30146575,577.8,576.79,0.2907869]
[1741523448184,0.30146575,577.8,576.78,0.2907869]
[1741523448386,0.30146575,577.8,576.8,0.2907869]
[1741523448586,0.30146575,577.8,576.81,0.2907869]
[1741523448780,0.30146575,577.8,576.82,0.2907869]
[1741523448981,0.30146575,577.8,576.77,1.04322442]
[1741523449181,0.30146575,577.8,576.78,0.29079254]
[1741523449487,0.447,577.82,576.78,0.29079254]
[1741523449887,0.30146575,577.79,576.78,0.29079254]
[1741523450688,0.30146575,577.79,576.77,1.04322442]
[1741523450884,0.30146575,577.79,576.78,0.29078759]
[1741523452290,0.447,577.82,576.78,0.29078759]
[1741523452493,0.447,577.82,576.79,0.29078801]
[1741523452693,0.30146575,577.78,576.78,0.29078801]
[1741523452892,0.30146575,577.78,576.79,0.29078801]
[1741523453092,0.30146575,577.78,576.78,0.29078801]
[1741523453292,0.30146575,577.78,576.79,0.29078801]
[1741523453488,0.30146575,577.78,576.78,0.29078801]
[1741523453692,0.30146575,577.78,576.79,0.29078801]
[1741523453893,0.30146575,577.78,576.78,0.29078801]
[1741523454093,0.30146575,577.78,576.79,0.29078801]
[1741523454289,0.30146575,577.78,576.77,1.04322442]
[1741523454488,0.30146575,577.78,576.78,0.29078722]
[1741523455293,0.447,577.82,576.78,0.29078722]
[1741523455794,0.30146575,577.77,576.78,0.29078722]
[1741523457693,0.30146575,577.77,576.79,0.29078722]
[1741523457892,0.30146575,577.77,576.78,0.29078722]
[1741523458194,0.30146575,577.77,576.79,0.29078722]
[1741523458396,0.30146575,577.77,576.8,0.29078722]
[1741523458591,0.30146575,577.77,576.78,0.29078722]
[1741523459696,0.30146575,577.77,576.79,0.29078705]
[1741523459893,0.30146575,577.77,576.78,0.29078705]
[1741523460093,0.30146575,577.77,576.79,0.29078705]
[1741523460294,0.30146575,577.77,576.78,0.29078705]
[1741523460499,0.30146575,577.77,576.79,0.29078705]
[1741523460900,0.30146575,577.77,576.8,0.29078705]
[1741523461099,0.30146575,577.77,576.78,0.29078705]
[1741523461300,0.447,577.82,576.78,0.29078705]
[1741523461498,0.3460986,577.87,576.78,0.29078705]
[1741523461799,0.30146575,577.76,576.78,0.29078705]
[1741523461995,0.3460986,577.87,576.78,0.29078705]
[1741523462501,0.3460986,577.87,576.79,0.34674664]
[1741523462697,0.61967705,577.86,576.8,0.29078441]
[1741523462897,0.30139656,577.86,576.8,0.29078441]
[1741523463100,0.30139656,577.86,576.81,0.34673462]
[1741523463405,0.30139656,577.86,576.82,0.29078441]
[1741523463603,0.30139656,577.86,576.83,0.3467226]
[1741523463805,0.30139656,577.86,576.84,0.29078441]
[1741523464397,0.3460986,577.87,576.84,0.29078441]
[1741523464605,0.30142005,577.85,576.84,0.29078441]
[1741523467508,0.519,577.86,576.84,0.29078441]
[1741523467711,0.30142136,577.84,576.84,0.29078441]
[1741523469814,0.30142136,577.84,576.83,0.3467226]
[1741523470017,0.30142136,577.84,576.84,0.29072662]
[1741523470211,0.30142136,577.84,576.84,0.63744321]
[1741523470415,0.30142136,577.84,576.85,0.29072662]
[1741523471718,0.30142136,577.84,576.86,0.29072694]
[1741523471919,0.30142136,577.84,576.85,0.29072694]
[1741523472220,0.30142136,577.84,576.86,0.29072694]
[1741523472519,0.30142136,577.84,576.87,0.29072694]
[1741523472718,0.30142136,577.84,576.88,0.29072694]
[1741523473017,0.30142136,577.84,576.89,0.29072694]
[1741523473218,0.30142136,577.84,576.85,0.29072694]
[1741523473420,0.30142136,577.84,576.86,0.29072522]
[1741523473619,0.30142136,577.84,576.85,0.29072522]
[1741523473816,0.30142136,577.84,576.86,0.29072522]
[1741523474016,0.30142136,577.84,576.85,0.29072522]
[1741523474218,0.30142136,577.84,576.86,0.29072522]
[1741523474414,0.30142136,577.84,576.85,0.29072522]
[1741523474614,0.30142136,577.84,576.87,0.29072522]
[1741523474919,0.30142136,577.84,576.88,0.29072522]
[1741523475221,0.30142136,577.84,576.89,0.29072522]
[1741523475414,0.30142136,577.84,576.85,0.29072522]
[1741523475720,0.30142136,577.84,576.84,0.34671659]
[1741523475721,0.30142136,577.84,576.86,0.29072522]
[1741523475921,0.30142136,577.84,576.87,0.29072522]
[1741523476220,0.30142136,577.84,576.88,0.29072522]
[1741523476413,0.519,577.86,576.85,0.29072522]
[1741523476615,0.30141744,577.83,576.86,0.29072522]
[1741523476921,0.30141744,577.83,576.87,0.75672522]
[1741523477114,0.30141744,577.83,576.88,0.29072522]
[1741523479414,0.519,577.86,576.88,0.29072522]
[1741523479621,0.30138481,577.85,576.88,0.29072522]
[1741523480422,0.30138481,577.85,576.89,0.34668654]
[1741523480621,0.30138481,577.85,576.9,0.29068371]
[1741523480821,0.30138481,577.85,576.91,0.34667452]
[1741523481120,0.30138481,577.85,576.92,0.29068371]
[1741523481322,0.30138481,577.85,576.93,0.3466625]
[1741523481520,0.30138481,577.85,576.94,0.29068371]
[1741523482121,0.30138481,577.85,576.95,0.34665048]
[1741523482317,1.27865714,578.57,576.96,0.29067052]
[1741523482519,0.34569181,578.55,576.97,0.34663847]
[1741523482723,0.30127783,577.85,576.98,0.29063285]
[1741523482924,0.473,578.54,576.99,0.34662645]
[1741523483218,0.34570974,578.52,577.0,0.29063285]
[1741523483420,0.31812988,578.51,577.01,0.34661444]
[1741523483624,0.34572767,578.49,577.01,0.34661444]
[1741523483926,0.31812988,578.48,577.01,0.34661444]
[1741523484124,0.3457456,578.46,577.01,0.34661444]
[1741523484318,0.31812988,578.45,577.01,0.34661444]
[1741523485119,0.34575755,578.44,577.01,0.34661444]
[1741523485520,0.31812988,578.43,577.01,0.34661444]
[1741523485716,0.34576951,578.42,577.02,0.2906331]
[1741523485921,0.31812988,578.41,577.03,0.34660242]
[1741523486126,0.34578146,578.4,577.03,0.34660242]
[1741523486316,0.31812988,578.39,577.03,0.34660242]
[1741523486521,0.34579342,578.38,577.03,0.34660242]
[1741523486922,0.31812988,578.37,577.03,0.34660242]
[1741523487119,0.34580538,578.36,577.03,0.34660242]
[1741523487323,0.31812988,578.35,577.03,0.34660242]
[1741523487523,0.34581733,578.34,577.03,0.34660242]
[1741523488524,0.30128044,578.33,577.03,0.34660242]
[1741523488824,0.34582929,578.32,577.03,0.34660242]
[1741523491827,0.30128827,578.31,577.03,0.34660242]
[1741523492021,0.34584125,578.3,577.03,0.34660242]
[1741523492425,0.31814066,578.29,577.03,0.34660242]
[1741523492625,0.34585321,578.28,577.04,0.29065893]
[1741523492826,0.34585321,578.28,577.03,0.34660242]
[1741523493025,0.31816198,578.27,577.04,0.29066761]
[1741523493220,0.34586518,578.26,577.04,0.29066761]
[1741523493422,0.31816198,578.25,577.04,0.29066761]
[1741523493818,0.34587714,578.24,577.04,0.29066761]
[1741523494029,0.34587714,578.24,577.03,0.84860242]
[1741523494228,0.31816095,578.23,577.04,0.29066647]
[1741523494620,0.31814451,578.22,577.05,0.29065023]
[1741523494820,0.31814401,578.21,577.06,0.29064973]
[1741523495121,0.31814401,578.2,577.07,0.29064973]
[1741523495324,0.31814401,578.23,577.04,0.29064973]
[1741523495621,0.31813998,578.22,577.05,0.29064973]
[1741523495827,0.31813998,578.23,577.04,0.29064973]
[1741523496126,0.31813998,578.23,577.03,0.84860242]
[1741523496127,0.31813998,578.22,577.05,0.29064973]
[1741523496328,0.31813998,578.23,577.06,0.34658441]
[1741523496525,0.31812685,578.22,577.07,0.29063272]
[1741523496727,0.31812685,578.21,577.08,0.34657239]
[1741523496921,0.31812685,578.2,577.09,0.29063272]
[1741523497126,0.31812685,578.19,577.09,0.29063272]
[1741523497319,0.31812685,578.23,577.09,0.29063272]
[1741523497520,0.31812685,578.22,577.09,0.29063272]
[1741523497727,0.31812685,578.21,577.09,0.29063272]
[1741523497923,0.31812685,578.23,577.09,0.29063272]
[1741523498123,0.87412685,578.2,577.09,0.29063272]
[1741523498429,0.31812685,578.19,577.09,0.29063272]
[1741523499425,0.556,578.2,577.09,0.29063272]
[1741523499729,0.556,578.2,577.1,0.29059939]
[1741523500030,0.556,578.2,577.08,0.34657239]
[1741523500031,0.556,578.2,577.11,0.29059939]
[1741523500228,0.556,578.2,577.08,0.34657239]
[1741523500229,0.556,578.2,577.12,0.63714776]
[1741523500430,0.556,578.2,577.13,0.29059939]
[1741523500625,0.30126088,578.19,577.13,0.29059939]
[1741523502831,0.30126088,578.19,577.12,0.34654837]
[1741523503030,0.30126088,578.19,577.13,0.29061696]
[1741523503529,0.556,578.2,577.13,0.29061696]
[1741523503829,0.30128175,578.18,577.13,0.29061696]
[1741523505230,0.30128175,578.18,577.14,0.29060621]
[1741523505632,0.30128175,578.18,577.15,0.29060621]
[1741523505832,0.30128175,578.18,577.16,0.29060621]
[1741523506033,0.30128175,578.18,577.17,0.29060621]
[1741523506230,0.30128175,578.18,577.13,0.29060621]
[1741523506432,0.556,578.2,577.14,0.29060621]
[1741523506635,0.3012661,578.17,577.13,0.29060621]
[1741523506835,0.3012661,578.17,577.14,0.29060621]
[1741523507036,0.3012661,578.17,577.13,0.29060621]
[1741523507237,0.3012661,578.17,577.14,0.29060621]
[1741523507436,0.3012661,578.17,577.13,0.29060621]
[1741523507638,0.3012661,578.17,577.14,0.29060621]
[1741523507835,0.3012661,578.17,577.15,0.29060621]
[1741523508139,0.3012661,578.17,577.16,0.29060621]
[1741523508336,0.3012661,578.17,577.13,0.29060621]
[1741523508536,0.3012661,578.17,577.16,0.508]
[1741523508737,0.3012661,578.17,577.17,0.29060621]
[1741523509338,0.556,578.2,577.17,0.29060621]
[1741523509536,0.31810967,578.19,577.17,0.29060621]
[1741523509736,0.30126088,578.16,577.17,0.29060621]
[1741523509939,0.31810967,578.15,577.17,0.29060621]
[1741523510639,0.30126088,578.16,577.18,0.29061734]
[1741523510834,0.3181113,578.15,577.19,0.29061734]
[1741523511037,0.3181113,578.15,577.17,0.29061734]
[1741523511234,0.3181113,578.15,577.18,0.29061734]
[1741523511432,0.3181113,578.15,577.17,0.29061734]
[1741523512241,0.30126088,578.16,577.16,0.508]
[1741523512441,0.556,578.2,577.16,0.508]
[1741523512641,0.30130522,578.14,577.16,0.508]
[1741523515544,0.34590705,578.19,577.16,0.508]
[1741523516649,0.30129218,578.18,577.16,0.508]
[1741523518941,0.31816383,578.17,577.17,0.29066941]
[1741523519742,0.31816383,578.17,577.16,0.508]
[1741523521648,0.31816383,578.16,577.16,0.508]
[1741523521849,0.31816383,578.18,577.16,0.508]
[1741523522047,0.34590705,578.19,577.16,0.508]
[1741523522048,0.31816383,578.15,577.16,0.508]
[1741523522350,0.31816383,578.14,577.16,0.508]
[1741523522546,0.30138481,578.14,577.16,0.508]
[1741523522745,0.31816383,578.13,577.16,0.508]
[1741523522950,0.31816383,578.12,577.16,0.508]
[1741523523143,0.30138481,578.14,577.16,0.508]
[1741523523144,0.31816383,578.11,577.16,0.508]
[1741523523348,0.31816383,578.1,577.16,0.508]
[1741523523549,0.31816383,578.13,577.16,0.508]
[1741523523754,0.31816383,578.12,577.16,0.508]
[1741523523952,0.31816383,578.11,577.16,0.508]
[1741523524249,0.31816383,578.1,577.16,0.508]
[1741523524452,0.30138481,578.14,577.16,0.508]
[1741523524453,0.31816383,578.13,577.16,0.508]
[1741523527550,0.31816383,578.18,577.16,0.508]
[1741523527954,0.30151537,578.17,577.16,0.508]
[1741523528153,0.31816383,578.16,577.16,0.508]
[1741523528755,0.34593697,578.14,577.16,0.508]
[1741523528956,0.31816383,578.13,577.16,0.508]
[1741523529156,0.31816383,578.12,577.16,0.508]
[1741523529350,0.31816383,578.11,577.16,0.508]
[1741523530651,0.30151276,578.1,577.16,0.508]
[1741523530851,0.31816383,578.09,577.16,0.508]
[1741523531151,0.31816383,578.08,577.16,0.508]
[1741523531359,0.30151276,578.1,577.16,0.508]
[1741523531360,0.31816383,578.07,577.16,0.508]
[1741523531656,0.31816383,578.06,577.16,0.508]
[1741523531856,0.31816383,578.05,577.16,0.508]
[1741523532055,0.30151276,578.1,577.16,0.508]
[1741523532056,0.31816383,578.04,577.16,0.508]
[1741523532256,0.30151276,578.1,577.16,0.508]
[1741523532257,0.31816383,578.03,577.16,0.508]
[1741523532456,0.31816383,578.09,577.16,0.508]
[1741523532655,0.31816383,578.02,577.16,0.508]
[1741523532956,0.31816383,578.01,577.16,0.508]
[1741523533153,0.31816383,578.06,577.16,0.508]
[1741523535159,0.31816383,578.05,577.16,0.508]
[1741523535359,0.31816383,578.04,577.16,0.508]
[1741523535659,0.31816383,578.03,577.16,0.508]
[1741523535957,0.31816383,578.02,577.16,0.508]
[1741523536158,0.31816383,578.01,577.16,0.508]
[1741523536358,0.31816383,578.0,577.16,0.508]
[1741523536556,0.31816383,577.99,577.16,0.508]
[1741523536758,0.34597886,578.07,577.16,0.508]
[1741523536759,0.31816383,577.98,577.16,0.508]
[1741523536959,0.31816383,577.97,577.16,0.508]
[1741523537358,0.31816383,577.96,577.16,0.508]
[1741523537557,0.31816383,577.95,577.16,0.508]
[1741523537759,0.31816383,577.94,577.16,0.508]
[1741523537954,0.31816383,577.93,577.16,0.508]
[1741523538154,0.31816383,577.92,577.16,0.508]
[1741523538364,0.31816383,577.91,577.16,0.508]
[1741523538661,0.3017062,577.96,577.16,0.508]
[1741523538662,0.31816383,577.9,577.16,0.508]
[1741523538860,0.31816383,577.89,577.16,0.508]
[1741523539062,0.31816383,577.88,577.16,0.508]
[1741523539261,0.31816383,577.87,577.16,0.508]
[1741523539462,0.31816383,577.86,577.16,0.508]
[1741523539661,0.31816383,577.85,577.16,0.508]
[1741523539866,0.31816383,577.84,577.16,0.508]
[1741523540062,0.31816383,577.83,577.16,0.508]
[1741523540262,0.31816383,578.06,577.16,0.508]
[1741523540459,0.31816383,578.05,577.16,0.508]
[1741523540656,0.30163036,577.82,577.16,0.508]
[1741523540864,0.31816383,577.81,577.16,0.508]
[1741523541060,0.66430436,577.8,577.16,0.508]
[1741523541260,0.31816383,577.79,577.16,0.508]
[1741523541858,0.31816383,577.78,577.16,0.508]
[1741523542058,0.66432233,577.77,577.16,0.508]
[1741523542258,0.31816383,577.76,577.16,0.508]
[1741523542661,0.3461585,577.77,577.16,0.508]
[1741523542961,0.31858022,577.76,577.16,0.508]
[1741523543264,0.31858022,577.75,577.16,0.508]
[1741523543457,0.6647567,577.74,577.16,0.508]
[1741523543657,0.66476269,577.73,577.16,0.508]
[1741523543963,0.31858022,577.72,577.16,0.508]
[1741523544164,0.66477467,577.71,577.16,0.508]
[1741523544464,1.11878067,577.7,577.16,0.508]
[1741523544765,0.66478666,577.69,577.16,0.508]
[1741523544969,0.31858022,577.68,577.16,0.508]
[1741523545362,0.31858022,577.67,577.16,0.508]
[1741523545562,0.31858022,577.68,577.16,0.508]
[1741523545763,0.31858022,577.67,577.16,0.508]
[1741523545965,0.31858022,577.66,577.16,0.508]
[1741523546167,0.31858022,577.65,577.16,0.508]
[1741523546461,0.31858022,577.64,577.16,0.508]
[1741523546668,0.31858022,577.63,577.16,0.508]
[1741523546867,0.31858022,577.62,577.16,0.508]
[1741523547067,0.31858022,577.61,577.16,0.508]
[1741523547268,0.31858022,577.6,577.16,0.508]
[1741523547566,0.31858022,577.59,577.16,0.508]
[1741523547768,0.31858022,577.58,577.16,0.508]
[1741523547967,0.31858022,577.57,577.16,0.508]
[1741523548162,0.66486458,577.56,577.16,0.508]
[1741523548362,0.66487058,577.55,577.16,0.508]
[1741523548565,0.66487658,577.54,577.16,0.508]
[1741523548759,0.66488257,577.53,577.16,0.508]
[1741523548961,0.31858022,577.52,577.16,0.508]
[1741523549266,0.34631434,577.51,577.16,0.508]
[1741523549568,0.31858022,577.5,575.37,1.28526279]
[1741523549867,0.31858022,577.5,576.26,0.30182657]
[1741523550067,0.31858022,577.5,576.27,0.29112768]
[1741523550261,0.31858022,577.5,575.48,0.29112768]
[1741523550464,0.31858022,577.5,575.49,0.29112768]
[1741523550661,0.31858022,577.5,575.5,0.29112768]
[1741523550862,0.31858022,577.5,575.52,0.34751181]
[1741523551067,0.31858022,577.5,575.53,0.29112768]
[1741523551264,0.34632634,577.49,575.55,0.3474937]
[1741523551463,0.31858022,577.48,575.56,0.29112768]
[1741523551861,0.34632634,577.49,575.57,0.29112768]
[1741523552064,0.34632634,577.49,575.58,0.29112768]
[1741523552269,0.34632634,577.49,575.59,0.29112768]
[1741523552467,0.34632634,577.49,575.6,0.29112768]
[1741523552662,0.34632634,577.49,575.61,0.29112768]
[1741523552860,0.34632634,577.49,575.62,0.29112768]
[1741523553061,0.30182526,577.51,575.63,0.29112768]
[1741523553264,0.31851915,577.5,575.64,0.29112768]
[1741523553460,0.31851915,577.5,575.65,0.29112768]
[1741523553663,0.30182526,577.51,575.66,0.29112768]
[1741523554068,0.30182526,577.51,575.67,0.29112768]
[1741523554267,0.30182526,577.51,575.6,0.521]
[1741523554268,0.30182526,577.51,575.68,0.29112768]
[1741523554464,0.30182526,577.51,575.69,0.29112768]
[1741523554665,0.30182526,577.51,575.7,0.29112768]
[1741523554968,0.30182526,577.51,575.71,0.29112768]
[1741523555168,0.30182526,577.51,575.72,0.29112768]
[1741523555369,0.30182526,577.51,575.73,0.29112768]
[1741523555565,0.31843842,577.5,575.74,0.29112768]
[1741523555869,0.31843842,577.5,575.75,0.29112768]
[1741523556067,0.31843842,577.5,575.76,0.29112768]
[1741523556267,0.31843842,577.5,575.77,0.29112768]
[1741523556462,0.31843842,577.5,575.78,0.29112768]
[1741523556660,0.31843842,577.5,575.79,0.29112768]
[1741523556868,0.31843842,577.5,575.8,0.29112768]
[1741523557068,0.30182526,577.51,575.6,0.521]
[1741523557370,0.31844166,577.5,575.61,0.29094334]
[1741523557566,0.31844166,577.5,575.6,0.521]
[1741523557567,0.31844166,577.49,576.0,1.28526279]
[1741523557767,0.454,577.7,576.01,0.29094334]
[1741523557966,0.31841269,577.69,576.02,0.29094334]
[1741523558167,0.31841269,577.69,576.03,0.29094334]
[1741523558370,0.31841269,577.69,576.04,0.29094334]
[1741523558668,0.30162121,577.68,576.05,0.29094334]
[1741523558967,0.31841269,577.67,576.06,0.29094334]
[1741523559162,0.31841269,577.67,576.07,0.29094334]
[1741523559367,0.31841269,577.67,576.08,0.29094334]
[1741523559569,0.31841269,577.67,576.09,0.29094334]
[1741523559776,0.30162121,577.68,576.0,1.28526279]
[1741523559963,0.31842678,577.67,576.01,0.29092868]
[1741523560163,0.31842678,577.67,576.02,0.29092868]